bitfinex-derivatives/quotes_BTCF0:USTF0_20250327
["timestamp","ask_amount","ask_price","bid_price","bid_amount"]
[1743076152874,2.05214543,86881.0,86880.0,0.1160874]
[1743076153179,1.93705933,86881.0,86880.0,0.1160874]
[1743076153371,1.93705933,86881.0,86880.0,0.2014874]
[1743076157289,1.93705933,86881.0,86880.0,1.7014874]
[1743076157481,1.93705933,86881.0,86880.0,1.7021274]
[1743076158185,1.93110241,86881.0,86880.0,1.7021274]
[1743076158682,1.92202001,86881.0,86880.0,1.7021274]
[1743076158985,1.93090214,86881.0,86880.0,1.7021274]
[1743076159486,1.93672402,86881.0,86880.0,1.7021274]
[1743076161682,1.92784189,86881.0,86880.0,1.7021274]
[1743076162588,1.93661554,86881.0,86880.0,1.7021274]
[1743076165889,1.93661554,86881.0,86880.0,2.0629274]
[1743076167408,1.93661554,86881.0,86880.0,1.7021274]
[1743076168693,1.93661554,86881.0,86880.0,1.6609274]
[1743076170008,1.93661554,86881.0,86880.0,1.7040274]
[1743076187112,1.93661846,86881.0,86880.0,1.7040274]
[1743076187918,1.93661846,86881.0,86880.0,1.91051045]
[1743076190012,1.55398575,86881.0,86880.0,1.91051045]
[1743076190218,1.37402615,86881.0,86880.0,1.91051045]
[1743076190513,1.06825685,86881.0,86880.0,1.91051045]
[1743076190713,0.99104845,86881.0,86880.0,1.91051045]
[1743076191031,0.89735038,86881.0,86880.0,1.91051045]
[1743076191317,0.85772958,86881.0,86880.0,1.91051045]
[1743076191516,0.80684068,86881.0,86880.0,1.91051045]
[1743076191714,0.80784068,86881.0,86880.0,1.91051045]
[1743076192119,0.80784068,86881.0,86880.0,1.90951045]
[1743076192912,0.80784068,86881.0,86880.0,1.91151045]
[1743076193413,0.80684068,86881.0,86880.0,1.91351045]
[1743076195424,0.80684068,86881.0,86880.0,1.7070274]
[1743076199222,0.80684068,86881.0,86880.0,2.4286274]
[1743076201820,0.76224918,86881.0,86880.0,2.4286274]
[1743076202023,0.60597845,86881.0,86880.0,2.4286274]
[1743076202217,0.41164155,86881.0,86880.0,2.5286274]
[1743076202414,0.19773731,86881.0,86880.0,2.5286274]
[1743076202729,0.0857,86896.0,86895.0,0.1150676]
[1743076202913,0.08634,86896.0,86895.0,0.1157076]
[1743076203118,0.0857,86896.0,86895.0,0.1571076]
[1743076203321,0.0857,86896.0,86895.0,1.6571076]
[1743076203520,0.0857,86896.0,86895.0,1.66779037]
[1743076203929,0.0877,86896.0,86895.0,1.66779037]
[1743076204328,0.0877,86896.0,86895.0,1.70979037]
[1743076204628,0.0897,86896.0,86895.0,1.70979037]
[1743076204819,0.0877,86896.0,86895.0,1.70979037]
[1743076206229,0.0857,86896.0,86895.0,1.70979037]
[1743076212128,0.0857,86896.0,86895.0,2.07059037]
[1743076212324,0.0857,86896.0,86895.0,2.02859037]
[1743076213329,0.0857,86896.0,86895.0,2.07199037]
[1743076214040,0.00017264,86904.0,86896.0,0.1150662]
[1743076214239,0.00017264,86904.0,86896.0,0.2030662]
[1743076214628,0.00017264,86904.0,86896.0,1.7030662]
[1743076229752,0.00017264,86904.0,86903.0,0.115057]
[1743076230048,0.00077265,86904.0,86903.0,0.476457]
[1743076230250,0.00017264,86904.0,86903.0,0.559457]
[1743076230439,0.00017264,86904.0,86903.0,2.059457]
[1743076231049,0.00417264,86904.0,86903.0,2.059457]
[1743076234150,0.00417264,86904.0,86903.0,2.0678771]
[1743076238148,5e-08,86913.0,86912.0,0.1150451]
[1743076238354,6e-08,86913.0,86912.0,0.4764451]
[1743076238654,0.21155634,86926.0,86917.0,0.1150384]
[1743076238855,0.21155634,86926.0,86917.0,1.6158784]
[1743076239056,0.21155634,86926.0,86917.0,1.6987784]
[1743076239357,4e-08,86918.0,86917.0,1.6987784]
[1743076239752,0.17102898,86926.0,86925.0,0.1150278]
[1743076239958,0.17178898,86926.0,86925.0,0.4765878]
[1743076240157,0.17178898,86926.0,86925.0,0.5995878]
[1743076240460,0.17102898,86926.0,86925.0,2.0995878]
[1743076241455,0.17302898,86926.0,86925.0,2.0995878]
[1743076242760,0.17502898,86926.0,86925.0,2.0995878]
[1743076242961,5e-08,86929.0,86928.0,0.1150239]
[1743076243157,5e-08,86929.0,86928.0,0.12657219]
[1743076243456,5e-08,86929.0,86928.0,0.20857219]
[1743076244254,0.00200005,86929.0,86928.0,0.20857219]
[1743076249462,0.05610005,86936.0,86935.0,0.1150146]
[1743076249659,0.05610005,86936.0,86935.0,0.4765746]
[1743076249856,0.0388,86936.0,86935.0,0.5577746]
[1743076250064,0.00011432,86937.0,86936.0,0.1150133]
[1743076250254,0.00011432,86937.0,86936.0,0.1544133]
[1743076250561,0.00011432,86937.0,86936.0,0.2356133]
[1743076251263,0.00011432,86937.0,86936.0,1.7356133]
[1743076253057,0.00011432,86937.0,86936.0,1.6970133]
[1743076255957,0.00011432,86937.0,86936.0,1.7369133]
[1743076264070,0.00011432,86937.0,86936.0,1.6970133]
[1743076269077,0.00011432,86937.0,86936.0,2.0578133]
[1743076275182,0.00589335,86937.0,86936.0,2.0578133]
[1743076275881,0.0004,86945.0,86944.0,0.1150027]
[1743076276084,0.0419,86951.0,86950.0,0.1149948]
[1743076276281,0.0419,86951.0,86950.0,0.1157548]
[1743076276580,0.0419,86951.0,86950.0,0.2348548]
[1743076276882,0.04266,86951.0,86950.0,1.7348548]
[1743076277080,0.0419,86951.0,86950.0,1.7348548]
[1743076277378,0.0419,86951.0,86950.0,1.6939548]
[1743076277777,0.05071453,86951.0,86950.0,1.70277623]
[1743076279484,0.05071453,86951.0,86950.0,1.71357676]
[1743076280986,0.05071453,86951.0,86950.0,1.92035644]
[1743076281778,0.05071453,86951.0,86950.0,0.38125644]
[1743076281977,0.16570803,86951.0,86950.0,0.34215644]
[1743076282176,0.20706803,86951.0,86950.0,0.34215644]
[1743076282781,0.20706803,86951.0,86950.0,0.33135591]
[1743076283996,0.56786803,86951.0,86950.0,0.33135591]
[1743076284291,0.56786803,86951.0,86950.0,0.32253448]
[1743076284492,0.56786803,86951.0,86950.0,0.1157548]
[1743076286687,0.20710673,86951.0,86950.0,0.1157548]
[1743076286885,0.20710673,86951.0,86950.0,0.1553548]
[1743076287695,0.20710673,86951.0,86950.0,0.1984548]
[1743076288094,0.21293656,86951.0,86950.0,0.1984548]
[1743076289104,0.21293656,86951.0,86950.0,0.00076]
[1743076289390,0.27043326,86951.0,86950.0,0.1149948]
[1743076289594,0.27043326,86951.0,86950.0,0.1157548]
[1743076290098,0.27043326,86951.0,86950.0,0.1565548]
[1743076291989,0.27043326,86951.0,86950.0,0.1157548]
[1743076294003,0.27043326,86951.0,86950.0,0.1590548]
[1743076294300,0.27043326,86951.0,86950.0,0.21049358]
[1743076294686,0.26158003,86951.0,86950.0,0.21049358]
[1743076294886,0.2706237,86951.0,86950.0,0.21049358]
[1743076295497,0.1556302,86951.0,86950.0,0.21049358]
[1743076300198,0.1150302,86951.0,86950.0,0.21049358]
[1743076300797,0.1150302,86951.0,86950.0,0.1994548]
[1743076301004,0.1586302,86951.0,86950.0,0.08446]
[1743076301300,0.1586302,86951.0,86950.0,0.04406]
[1743076301506,0.1586302,86951.0,86950.0,0.0433]
[1743076301704,0.2511335,86951.0,86942.0,0.00017253]
[1743076301902,0.115004,86943.0,86942.0,0.00097253]
[1743076302098,0.1306375,86943.0,86942.0,0.04457253]
[1743076302297,0.2585375,86943.0,86942.0,0.04457253]
[1743076303309,0.2585375,86943.0,86942.0,0.15957793]
[1743076304006,0.2585375,86943.0,86942.0,0.00097253]
[1743076304210,0.1150093,86939.0,86938.0,0.27570624]
[1743076304412,0.12469297,86939.0,86938.0,0.27630624]
[1743076304599,0.22747502,86939.0,86938.0,0.27630624]
[1743076306707,0.2361787,86939.0,86938.0,0.27630624]
[1743076306908,0.3861787,86939.0,86938.0,0.27630624]
[1743076308005,0.3861787,86939.0,86938.0,0.0006]
[1743076308207,0.1150133,86936.0,86935.0,8e-05]
[1743076308402,0.1305668,86936.0,86935.0,8e-05]
[1743076308606,0.2110668,86936.0,86935.0,8e-05]
[1743076308802,0.20202313,86936.0,86935.0,8e-05]
[1743076309010,0.2112355,86936.0,86935.0,8e-05]
[1743076309902,0.5720355,86936.0,86935.0,8e-05]
[1743076315318,0.5720355,86936.0,86935.0,0.1150946]
[1743076315319,0.4915355,86936.0,86935.0,0.1150946]
[1743076315505,0.3765222,86936.0,86935.0,0.1150946]
[1743076315706,0.0157222,86936.0,86935.0,0.1157346]
[1743076315905,0.0157222,86936.0,86935.0,1.7008346]
[1743076316217,0.6682499,86939.0,86938.0,0.1150106]
[1743076316405,0.6690099,86939.0,86938.0,0.1157706]
[1743076316606,0.6690099,86939.0,86938.0,0.1593706]
[1743076316822,0.6690099,86939.0,86938.0,1.6593706]
[1743076317007,0.5540006,86939.0,86938.0,1.6593706]
[1743076318204,0.5323693,86939.0,86938.0,1.6593706]
[1743076319415,0.5323693,86939.0,86938.0,1.7026706]
[1743076320114,0.00076,86939.0,86938.0,1.7026706]
[1743076320316,0.1150089,86940.0,86939.0,0.0575043]
[1743076320517,0.1150089,86940.0,86939.0,0.1441643]
[1743076322818,0.1725083,86944.0,86943.0,0.057502]
[1743076323114,0.1725083,86944.0,86943.0,0.058302]
[1743076323911,0.00017219,86951.0,86950.0,0.1149948]
[1743076324112,0.0007722,86951.0,86950.0,0.1157548]
[1743076324314,0.1366406,86958.0,86957.0,0.1149855]
[1743076324613,0.2522648,86958.0,86957.0,0.1157855]
[1743076325119,0.2522648,86958.0,86957.0,0.12685787]
[1743076325411,0.2522648,86958.0,86957.0,0.1157855]
[1743076328430,0.2522648,86958.0,86957.0,0.1007855]
[1743076328717,0.25799765,86958.0,86957.0,0.1007855]
[1743076330105,0.12135705,86958.0,86957.0,0.1007855]
[1743076330506,0.1156242,86958.0,86957.0,0.1007855]
[1743076333620,0.12133216,86958.0,86957.0,0.1458855]
[1743076334223,0.1156242,86958.0,86957.0,0.1458855]
[1743076336713,0.1156242,86958.0,86957.0,0.1889855]
[1743076339125,0.1156242,86958.0,86957.0,0.1889855]
[1743076340825,0.1621242,86958.0,86957.0,0.1889855]
[1743076341126,0.1621242,86958.0,86957.0,0.089]
[1743076341313,0.2063242,86958.0,86957.0,0.2039855]
[1743076341921,0.21747573,86958.0,86957.0,0.2039855]
[1743076342126,0.21747573,86958.0,86957.0,0.0439]
[1743076342422,0.22319918,86958.0,86957.0,0.0431]
[1743076342619,0.1149855,86957.0,86956.0,0.1150668]
[1743076342823,0.11558551,86957.0,86956.0,0.1150668]
[1743076343016,0.20960896,86957.0,86956.0,0.1158268]
[1743076343213,0.21850005,86957.0,86956.0,0.1158268]
[1743076343519,0.21850005,86957.0,86956.0,0.1157468]
[1743076344726,0.21853006,86957.0,86956.0,0.1157468]
[1743076346621,0.21853006,86957.0,86956.0,0.1593468]
[1743076347616,0.13023006,86957.0,86956.0,0.2043468]
[1743076347819,0.13023006,86957.0,86956.0,0.2524468]
[1743076348330,0.13023006,86957.0,86956.0,1.7524468]
[1743076348331,0.12130896,86957.0,86956.0,1.7524468]
[1743076348930,0.17080896,86957.0,86956.0,1.7524468]
[1743076349927,0.17080896,86957.0,86956.0,0.2524468]
[1743076352829,0.12130896,86957.0,86956.0,0.2524468]
[1743076354035,0.1149855,86957.0,86956.0,0.2524468]
[1743076355235,0.1158255,86957.0,86956.0,0.2524468]
[1743076355432,0.12155682,86957.0,86956.0,0.2534468]
[1743076356336,0.18001908,86957.0,86956.0,0.2524468]
[1743076357041,0.13031908,86957.0,86956.0,0.2524468]
[1743076357330,0.12155682,86957.0,86956.0,0.2524468]
[1743076358138,0.12155682,86957.0,86956.0,0.2534468]
[1743076358432,0.17125682,86957.0,86956.0,0.2534468]
[1743076358738,0.17125682,86957.0,86956.0,0.2524468]
[1743076359038,0.12155682,86957.0,86956.0,0.2524468]
[1743076360033,0.16855682,86957.0,86956.0,0.2043468]
[1743076360233,0.27295424,86957.0,86956.0,0.2043468]
[1743076360935,0.21675682,86957.0,86956.0,0.2043468]
[1743076361238,0.22575443,86957.0,86956.0,0.2043468]
[1743076362242,0.22575443,86957.0,86956.0,0.2053468]
[1743076364141,0.22575443,86957.0,86956.0,0.2043468]
[1743076364343,0.22575443,86957.0,86956.0,0.2053468]
[1743076365145,0.22573388,86957.0,86956.0,0.2043468]
[1743076367040,0.22570883,86957.0,86956.0,0.2043468]
[1743076367347,0.36230219,86957.0,86956.0,0.2043468]
[1743076369536,0.72310219,86957.0,86956.0,0.2043468]
[1743076373045,0.72310219,86957.0,86956.0,0.08936]
[1743076373354,0.1149948,86950.0,86949.0,0.00017253]
[1743076373643,0.48542907,86950.0,86949.0,0.00085253]
[1743076373848,0.1150027,86944.0,86943.0,0.27570624]
[1743076374039,0.49572546,86944.0,86943.0,0.27630624]
[1743076374339,0.50229678,86944.0,86943.0,0.27630624]
[1743076374542,0.59819678,86944.0,86943.0,0.27630624]
[1743076375333,0.59819678,86944.0,86943.0,0.28030624]
[1743076376149,0.65411904,86944.0,86943.0,0.0046]
[1743076376349,0.65411904,86944.0,86943.0,0.004]
[1743076376645,0.115008,86940.0,86939.0,8e-05]
[1743076376840,0.115008,86940.0,86935.0,0.00017253]
[1743076376841,0.1150133,86936.0,86935.0,0.00017253]
[1743076377041,0.12484757,86936.0,86935.0,0.00017253]
[1743076377238,0.22054757,86936.0,86935.0,0.00017253]
[1743076377548,0.22627889,86936.0,86935.0,0.00017253]
[1743076377937,0.22627889,86936.0,86935.0,0.00517253]
[1743076379350,0.24113078,86936.0,86935.0,0.00517253]
[1743076380555,0.1150186,86932.0,86931.0,8e-05]
[1743076380753,0.1150278,86925.0,86924.0,1e-07]
[1743076380946,0.1150437,86913.0,86910.0,0.045]
[1743076381147,0.1150464,86911.0,86910.0,0.045]
[1743076381342,0.13973256,86911.0,86910.0,0.00064]
[1743076381748,0.24436388,86911.0,86910.0,0.00064]
[1743076381945,0.1150517,86907.0,86906.0,0.0498]
[1743076382141,0.13981786,86907.0,86906.0,0.0006]
[1743076382443,0.13069729,86907.0,86906.0,0.0006]
[1743076384054,0.13069729,86907.0,86906.0,0.0515]
[1743076384349,0.13069729,86907.0,86906.0,0.0565]
[1743076384554,0.13069729,86907.0,86906.0,0.0615]
[1743076385051,0.23159729,86907.0,86906.0,0.0615]
[1743076385253,0.23159729,86907.0,86906.0,0.0106]
[1743076385453,0.23159729,86907.0,86906.0,0.01]
[1743076386557,0.24667055,86907.0,86906.0,0.01]
[1743076387255,0.14577055,86907.0,86906.0,0.221253]
[1743076387554,0.01498806,86907.0,86906.0,0.221253]
[1743076387763,0.13631457,86913.0,86912.0,0.1150451]
[1743076388053,0.13699457,86913.0,86912.0,1.6156451]
[1743076388254,0.13631457,86913.0,86912.0,1.62684593]
[1743076388957,0.13631457,86913.0,86912.0,1.63084593]
[1743076389551,0.00017253,86919.0,86918.0,0.1150371]
[1743076389750,0.00017253,86919.0,86918.0,0.1156371]
[1743076390164,0.11520833,86919.0,86918.0,0.1634371]
[1743076390557,0.00017253,86919.0,86918.0,0.1634371]
[1743076390856,0.00017253,86919.0,86918.0,0.2602371]
[1743076391252,0.11520833,86919.0,86918.0,0.2622371]
[1743076391650,0.11520833,86919.0,86918.0,0.2642371]
[1743076391845,0.00017253,86919.0,86918.0,0.2642371]
[1743076393558,0.00077254,86919.0,86918.0,0.2642371]
[1743076395450,0.01553737,86919.0,86918.0,0.2642371]
[1743076395948,0.00077254,86919.0,86918.0,0.2642371]
[1743076396358,0.00017253,86919.0,86918.0,0.2642371]
[1743076399747,0.00915829,86919.0,86918.0,0.2642371]
[1743076401948,0.00017253,86919.0,86918.0,0.2642371]
[1743076402357,0.00920983,86919.0,86918.0,0.2642371]
[1743076404162,0.00917883,86919.0,86918.0,0.2642371]
[1743076406067,0.00921483,86919.0,86918.0,0.2642371]
[1743076406456,0.0092154,86919.0,86918.0,0.2642371]
[1743076408459,0.1150269,86926.0,86925.0,0.1150278]
[1743076408661,0.00068,86926.0,86925.0,0.1157078]
[1743076408965,0.00068,86926.0,86925.0,0.2130078]
[1743076409264,0.12158173,86926.0,86925.0,0.2130078]
[1743076409469,0.16948173,86926.0,86925.0,0.2130078]
[1743076409667,0.05445523,86926.0,86925.0,0.2130078]
[1743076410068,0.05445523,86926.0,86925.0,0.2140078]
[1743076411870,0.16948173,86926.0,86925.0,0.2140078]
[1743076412071,0.21968173,86926.0,86925.0,0.2140078]
[1743076414072,0.21968173,86926.0,86925.0,0.1662078]
[1743076415971,0.21968173,86926.0,86925.0,0.2127078]
[1743076416373,0.21968173,86926.0,86925.0,0.1662078]
[1743076417579,0.21968173,86926.0,86925.0,0.1167078]
[1743076419078,0.21968173,86926.0,86925.0,0.00168]
[1743076419274,0.21968173,86926.0,86925.0,0.001]
[1743076419578,0.21968173,86926.0,86925.0,0.00168]
[1743076419967,0.21968173,86926.0,86925.0,0.001]
[1743076420485,0.22858969,86926.0,86925.0,0.001]
[1743076420779,0.22858969,86926.0,86917.0,0.1150382]
[1743076420780,0.0575211,86915.0,86908.0,0.39075574]
[1743076421078,0.0575144,86925.0,86908.0,0.39075574]
[1743076421079,0.1725728,86911.0,86910.0,0.1150437]
[1743076421269,0.115049,86909.0,86908.0,0.27570624]
[1743076421470,0.115053,86906.0,86905.0,0.057527]
[1743076421779,0.13897189,86906.0,86905.0,0.058127]
[1743076421971,0.2371719,86906.0,86905.0,0.0006]
[1743076422376,0.23764462,86906.0,86905.0,0.0006]
[1743076422578,0.23764462,86906.0,86905.0,0.00072]
[1743076422579,0.2226344,86906.0,86905.0,0.00072]
[1743076422777,0.23827988,86906.0,86905.0,0.00072]
[1743076423578,0.23827988,86906.0,86905.0,0.00572]
[1743076424285,0.23813617,86906.0,86905.0,0.00572]
[1743076424583,0.25315715,86906.0,86905.0,0.01072]
[1743076425085,0.0575291,86903.0,86900.0,8e-05]
[1743076425274,0.1150689,86894.0,86888.0,0.00046036]
[1743076425580,0.50112756,86894.0,86893.0,0.41053374]
[1743076425796,0.51677304,86894.0,86893.0,0.41053374]
[1743076426193,0.51077304,86894.0,86893.0,0.41053374]
[1743076426393,0.51077304,86894.0,86893.0,0.00064]
[1743076426594,0.1110755,86889.0,86888.0,0.00046036]
[1743076426795,0.12123318,86889.0,86888.0,0.00046036]
[1743076426990,0.11523318,86889.0,86888.0,0.00046036]
[1743076427383,0.22457866,86889.0,86888.0,0.00046036]
[1743076427593,0.23552635,86889.0,86888.0,0.00046036]
[1743076427999,0.23552635,86889.0,86888.0,0.00646036]
[1743076428196,0.24491014,86889.0,86888.0,0.01046036]
[1743076428496,0.66151014,86889.0,86888.0,0.01046036]
[1743076428997,0.65173989,86889.0,86888.0,0.01046036]
[1743076429595,0.65173989,86889.0,86888.0,0.00446036]
[1743076429895,0.65073989,86889.0,86888.0,0.00046036]
[1743076430394,0.66044306,86889.0,86888.0,0.00046036]
[1743076431996,0.65073989,86889.0,86888.0,0.00046036]
[1743076432796,0.1150821,86884.0,86883.0,8e-05]
[1743076432996,0.1150888,86879.0,86875.0,0.0499]
[1743076433191,0.12517987,86879.0,86875.0,0.0499]
[1743076433397,0.1150927,86876.0,86875.0,0.0499]
[1743076433603,0.48602376,86876.0,86875.0,0.05058]
[1743076434303,0.48601121,86876.0,86875.0,0.05058]
[1743076435591,0.48601121,86876.0,86875.0,0.00068]
[1743076435795,0.1150967,86873.0,86872.0,0.00046044]
[1743076436000,0.12513521,86873.0,86872.0,0.00046044]
[1743076436800,0.13119732,86873.0,86872.0,0.11615844]
[1743076436999,0.13219732,86873.0,86872.0,0.21175844]
[1743076437707,0.22153521,86873.0,86872.0,0.21175844]
[1743076438899,0.12613521,86873.0,86872.0,0.21175844]
[1743076439206,0.12513521,86873.0,86872.0,0.21175844]
[1743076439393,0.01003851,86873.0,86872.0,0.21175844]
[1743076439802,0.00092,86873.0,86872.0,0.21175844]
[1743076440011,0.00092,86873.0,86872.0,1.71175844]
[1743076440208,0.3608,86876.0,86875.0,0.115094]
[1743076440401,0.3704906,86876.0,86875.0,0.115694]
[1743076440602,0.4855833,86876.0,86875.0,0.208894]
[1743076440906,0.3704906,86876.0,86875.0,0.208894]
[1743076443100,0.3695706,86876.0,86875.0,0.208894]
[1743076443402,0.3704906,86876.0,86875.0,0.208894]
[1743076443597,0.3704904,86876.0,86875.0,0.208894]
[1743076443803,0.00017264,86884.0,86883.0,0.1150835]
[1743076444006,0.00017264,86884.0,86883.0,0.2137235]
[1743076444007,0.00113265,86884.0,86883.0,0.2137235]
[1743076444316,0.00109264,86884.0,86883.0,0.2137235]
[1743076445311,0.11617474,86884.0,86883.0,0.2137235]
[1743076445611,0.00109264,86884.0,86883.0,0.2137235]
[1743076446113,0.11617474,86884.0,86883.0,0.2137235]
[1743076446308,0.11717474,86884.0,86883.0,0.2137235]
[1743076446511,0.12307112,86884.0,86883.0,0.2137235]
[1743076446708,0.00798902,86884.0,86883.0,0.2137235]
[1743076446903,0.00698902,86884.0,86883.0,0.2137235]
[1743076447797,0.00698902,86884.0,86883.0,0.2630235]
[1743076448702,0.12207112,86884.0,86883.0,0.2630235]
[1743076449109,0.00698902,86884.0,86883.0,0.2630235]
[1743076450014,0.00606902,86884.0,86883.0,0.2630235]
[1743076451509,0.00702903,86884.0,86883.0,0.2630235]
[1743076451708,0.00698902,86884.0,86883.0,0.2630235]
[1743076452109,0.3608,86895.0,86894.0,0.1150689]
[1743076452500,0.36152,86895.0,86894.0,0.2620689]
[1743076452712,0.36152,86895.0,86894.0,0.2627089]
[1743076453016,0.00072,86895.0,86894.0,0.2627089]
[1743076454121,0.1157876,86895.0,86894.0,0.2627089]
[1743076454804,0.1167876,86895.0,86894.0,0.2627089]
[1743076455011,0.1177876,86895.0,86894.0,0.2627089]
[1743076455319,0.00272,86895.0,86894.0,0.2627089]
[1743076455509,0.1177876,86895.0,86894.0,0.2627089]
[1743076455912,0.12663027,86895.0,86894.0,0.2627089]
[1743076456718,0.17273027,86895.0,86894.0,0.2627089]
[1743076456922,0.17273027,86895.0,86894.0,0.2125089]
[1743076457118,0.21993027,86895.0,86894.0,0.2125089]
[1743076460816,0.21993027,86895.0,86894.0,0.00064]
[1743076461020,0.1150702,86893.0,86892.0,8e-05]
[1743076461315,0.12455287,86893.0,86892.0,0.1156715]
[1743076461616,0.22015287,86893.0,86892.0,0.1156715]
[1743076461815,0.22015287,86893.0,86892.0,0.0006]
[1743076462222,0.23168461,86893.0,86892.0,0.0006]
[1743076462417,0.1150782,86887.0,86886.0,0.00017264]
[1743076462623,0.48540087,86887.0,86886.0,0.00081264]
[1743076462916,0.57860087,86887.0,86886.0,0.00017264]
[1743076464420,0.5845235,86887.0,86886.0,0.00085264]
[1743076464618,0.5875235,86887.0,86886.0,0.00085264]
[1743076465626,0.5905235,86887.0,86886.0,0.00085264]
[1743076465809,0.5905235,86887.0,86886.0,0.00017264]
[1743076466008,0.5905235,86887.0,86886.0,0.00077264]
[1743076467823,0.5905235,86887.0,86886.0,0.00017264]
[1743076468126,0.72688701,86887.0,86886.0,0.00077264]
[1743076468422,0.72688701,86887.0,86886.0,0.00017264]
[1743076471924,0.5905235,86887.0,86886.0,0.00017264]
[1743076472316,0.59055653,86887.0,86886.0,0.00017264]
[1743076473819,0.58168083,86887.0,86886.0,0.00017264]
[1743076474019,0.59057433,86887.0,86886.0,0.00017264]
[1743076475921,0.5905722,86887.0,86886.0,0.00017264]
[1743076476925,0.58168083,86887.0,86886.0,0.00017264]
[1743076477524,0.58168083,86887.0,86886.0,0.00085264]
[1743076477725,0.58168083,86887.0,86886.0,0.00017264]
[1743076479924,0.59055435,86887.0,86886.0,0.00017264]
[1743076482229,0.22975435,86887.0,86886.0,0.00017264]
[1743076482423,0.22975435,86887.0,86886.0,0.00081264]
[1743076482424,0.59055435,86887.0,86886.0,0.00081264]
[1743076482629,0.59055435,86887.0,86886.0,0.00017264]
[1743076483230,0.1150821,86884.0,86883.0,8e-05]
[1743076483536,0.1150901,86878.0,86877.0,8e-05]
[1743076483736,0.1150914,86877.0,86876.0,0.0466]
[1743076484029,0.22480755,86877.0,86876.0,0.0466]
[1743076484231,0.22480755,86877.0,86876.0,0.1616927]
[1743076484539,0.17640755,86877.0,86876.0,0.04724]
[1743076485521,0.18761384,86877.0,86876.0,0.04724]
[1743076485733,0.13060755,86877.0,86876.0,0.1616927]
[1743076485923,0.13060755,86877.0,86876.0,0.1622927]
[1743076486237,0.13060755,86877.0,86876.0,1.6622927]
[1743076487131,0.12173403,86877.0,86876.0,1.6622927]
[1743076487437,0.12173403,86877.0,86876.0,0.1622927]
[1743076491137,0.13051852,86877.0,86876.0,0.1622927]
[1743076492024,0.13051956,86877.0,86876.0,0.1622927]
[1743076492224,0.13051956,86877.0,86876.0,0.0472]
[1743076492431,0.22361956,86877.0,86876.0,0.1616927]
[1743076492632,0.27001956,86877.0,86876.0,0.0472]
[1743076492832,0.27001956,86877.0,86876.0,0.0466]
[1743076493341,0.27001956,86877.0,86876.0,0.1623727]
[1743076493533,0.27001956,86877.0,86876.0,0.04728]
[1743076493725,0.40639182,86877.0,86876.0,0.0466]
[1743076493930,0.40646025,86877.0,86876.0,0.0472]
[1743076494133,0.40646025,86877.0,86876.0,0.1616927]
[1743076494432,0.40646025,86877.0,86876.0,0.1623727]
[1743076495340,0.40646025,86877.0,86876.0,0.04728]
[1743076495535,0.40646025,86877.0,86876.0,0.0466]
[1743076495834,0.40645941,86877.0,86876.0,0.0472]
[1743076496040,0.40645941,86877.0,86876.0,0.1622927]
[1743076496241,0.40645941,86877.0,86876.0,0.0472]
[1743076497238,0.62775941,86877.0,86876.0,0.0472]
[1743076497439,0.62775941,86877.0,86876.0,0.0926]
[1743076498042,0.49138715,86877.0,86876.0,0.0926]
[1743076498241,0.49138715,86877.0,86876.0,0.2076927]
[1743076498741,0.53918715,86877.0,86876.0,0.2076927]
[1743076499443,0.53918569,86877.0,86876.0,0.2076927]
[1743076500930,0.49138569,86877.0,86876.0,0.2076927]
[1743076501330,0.49138569,86877.0,86876.0,0.2191834]
[1743076501529,0.49138569,86877.0,86876.0,0.2076927]
[1743076502143,0.48253403,86877.0,86876.0,0.2076927]
[1743076502444,0.52863403,86877.0,86876.0,0.1622927]
[1743076502744,0.57323403,86877.0,86876.0,0.1622927]
[1743076503735,0.57323403,86877.0,86876.0,0.2080927]
[1743076504839,0.48253403,86877.0,86876.0,0.2080927]
[1743076506329,0.36744263,86877.0,86876.0,0.2080927]
[1743076507038,0.05771314,86885.0,86881.0,0.0575426]
[1743076507233,0.3608,86900.0,86884.0,0.3608]
[1743076507437,0.20552341,86894.0,86893.0,0.1150702]
[1743076507643,0.09654469,86894.0,86893.0,0.1160302]
[1743076507835,0.09550468,86894.0,86893.0,1.7109302]
[1743076508238,0.09550468,86894.0,86893.0,1.8609302]
[1743076508443,0.23875324,86908.0,86907.0,0.1150517]
[1743076508641,0.23971325,86908.0,86907.0,0.4768117]
[1743076509339,0.24847596,86908.0,86907.0,0.4768117]
[1743076510147,0.24847596,86908.0,86907.0,0.48833475]
[1743076510548,0.24844537,86908.0,86907.0,0.48833475]
[1743076511048,0.25644537,86908.0,86907.0,0.48833475]
[1743076511248,0.01769213,86908.0,86907.0,0.48833475]
[1743076511449,0.01769213,86908.0,86907.0,0.58353475]
[1743076511956,0.01673212,86908.0,86907.0,0.58353475]
[1743076512147,0.008,86908.0,86907.0,0.58353475]
[1743076512545,0.00896001,86908.0,86907.0,0.58353475]
[1743076512846,0.00896001,86908.0,86907.0,0.59212646]
[1743076513645,0.008,86908.0,86907.0,0.59212646]
[1743076514043,0.00896001,86908.0,86907.0,0.59212646]
[1743076515146,0.008,86908.0,86907.0,0.59212646]
[1743076516742,0.008,86908.0,86907.0,2.09212646]
[1743076520146,0.008,86908.0,86907.0,1.73132646]
[1743076520343,0.008,86908.0,86907.0,2.09212646]
[1743076527958,0.0559,86908.0,86907.0,2.09212646]
[1743076530457,0.0559,86908.0,86907.0,1.73132646]
[1743076530664,0.0559,86908.0,86907.0,2.09212646]
[1743076532161,0.0559,86908.0,86907.0,2.04402646]
[1743076532463,0.17967034,86908.0,86907.0,1.63612646]
[1743076532657,0.18027035,86908.0,86907.0,1.63612646]
[1743076532851,0.23097035,86908.0,86907.0,1.63612646]
[1743076533258,0.23097004,86908.0,86907.0,1.63612646]
[1743076533469,0.11591974,86908.0,86907.0,1.63612646]
[1743076533771,0.11531973,86908.0,86907.0,1.63612646]
[1743076533965,0.23037003,86908.0,86907.0,1.63612646]
[1743076534271,0.23727489,86908.0,86907.0,1.63612646]
[1743076535068,0.22855516,86908.0,86907.0,1.63612646]
[1743076535270,0.23744374,86908.0,86907.0,1.63612646]
[1743076537264,0.12144196,86908.0,86907.0,1.63612646]
[1743076537661,0.12144196,86908.0,86907.0,1.68622646]
[1743076538264,0.11254485,86908.0,86907.0,1.68622646]
[1743076543070,0.22759515,86908.0,86907.0,1.68622646]
[1743076543273,0.23637002,86908.0,86907.0,1.68622646]
[1743076546370,0.60829918,86908.0,86907.0,0.00096]
[1743076546570,0.23733003,86908.0,86907.0,0.00096]
[1743076546768,0.23731542,86908.0,86907.0,0.00096]
[1743076547167,0.23731542,86908.0,86907.0,0.1160117]
[1743076547376,0.22855516,86908.0,86907.0,0.1160117]
[1743076554879,0.22855516,86908.0,86907.0,0.1635117]
[1743076555081,0.11350486,86908.0,86907.0,0.1635117]
[1743076555281,0.22855516,86908.0,86907.0,0.2088117]
[1743076555481,0.11350486,86908.0,86907.0,0.2088117]